fUSD/lending_fUSD_20240805
["ID","MTS","AMOUNT","RATE_DAILY","PERIOD"]
[334191506,1722821441927,-9999.99,0.00011035,2]
[334191507,1722821441945,-508.44,0.0001104,2]
[334191508,1722821441957,-508.44,0.00011043,2]
[334191509,1722821441969,-508.44,0.00011045,2]
[334191510,1722821441981,-508.44,0.00011048,2]
[334191511,1722821441993,-508.44,0.00011051,2]
[334191513,1722821442005,-150.99,0.00011051,2]
[334191514,1722821442016,-508.44,0.00011054,2]
[334191516,1722821442028,-508.44,0.00011057,2]
[334191519,1722821442040,-508.44,0.0001106,2]
[334191521,1722821442052,-1707.6183,0.0001106,2]
[334191523,1722821442063,-508.44,0.00011063,2]
[334191525,1722821442075,-508.44,0.00011066,2]
[334191526,1722821442087,-508.44,0.00011069,2]
[334191527,1722821442099,-508.44,0.00011072,2]
[334191528,1722821442111,-508.44,0.00011074,2]
[334191529,1722821442124,-508.44,0.00011077,2]
[334191530,1722821442136,-508.44,0.0001108,2]
[334191531,1722821442148,-508.44,0.00011083,2]
[334191532,1722821442159,-508.44,0.00011086,2]
[334191533,1722821442171,-508.44,0.00011089,2]
[334191534,1722821442188,-508.44,0.00011092,2]
[334191535,1722821442200,-508.44,0.00011095,2]
[334191536,1722821442213,-7271.36467137,0.00011105,2]
[334191537,1722821442226,-1314.50579025,0.00011105,2]
[334191538,1722821442238,-2727.84956445,0.00011105,2]
[334191539,1722821442250,-155.0,0.00011105,2]
[334191540,1722821442262,-1435.95558206,0.00011105,2]
[334191541,1722821442274,-166.90651805,0.00011105,2]
[334191542,1722821442285,-719.41831422,0.00011105,2]
[334191543,1722821442297,-170.10605173,0.00011105,2]
[334191544,1722821442309,-188.63628821,0.00011105,2]
[334191545,1722821442320,-380.70530097,0.00011105,2]
[334191546,1722821442331,-238.03011414,0.00011105,2]
[334191547,1722821442343,-218.65676918,0.00011105,2]
[334191548,1722821442355,-155.48197279,0.00011105,2]
[334191549,1722821442367,-476.40301441,0.00011105,2]
[334191550,1722821442379,-493.26052295,0.00011105,2]
[334191551,1722821442390,-224.76127133,0.00011105,2]
[334191552,1722821442402,-255.01105035,0.00011105,2]
[334191553,1722821442414,-186.51875281,0.00011105,2]
[334191554,1722821442426,-3401.74049812,0.00011105,2]
[334191555,1722821442445,-352.7379,0.00011106,2]
[334191556,1722821442457,-759.86827843,0.0001116,2]
[334191557,1722821442469,-1074.00301579,0.0001116,2]
[334191558,1722821442481,-155.0,0.00011161,2]
[334191559,1722821442493,-153.415,0.00011161,2]
[334191560,1722821442505,-420.0,0.00011184,2]
[334191561,1722821442517,-25301.89520735,0.00011186,2]
[334191562,1722821442529,-15471.57272848,0.00011186,2]
[334191563,1722821442541,-309.05361967,0.00011186,2]
[334191564,1722821442553,-600.38361179,0.00011186,2]
[334191565,1722821442566,-155.09162383,0.00011206,2]
[334191566,1722821442578,-346.04262722,0.00011206,2]
[334191567,1722821442590,-155.12513737,0.00011206,2]
[334191568,1722821442602,-3080.259936,0.00011321,2]
[334191569,1722821442614,-4096.65627506,0.00011321,2]
[334191570,1722821442626,-1256.4439005,0.00011322,2]
[334191571,1722821442639,-414.51752762,0.00011324,2]
[334191572,1722821442652,-218.74684726,0.00011324,2]
[334191573,1722821442664,-155.0,0.00011324,2]
[334191574,1722821442677,-159.50818121,0.00011324,2]
[334191575,1722821442695,-155.0,0.00011324,2]
[334191576,1722821442707,-1845.49146359,0.00011324,2]
[334191577,1722821442719,-155.0,0.00011324,2]
[334191578,1722821442731,-1000.0,0.00011382,2]
[334191579,1722821442743,-722.86197381,0.00011384,2]
[334191580,1722821442756,-211.02439765,0.00011384,2]
[334191581,1722821442768,-3092.64,0.00011384,7]
[334191582,1722821442780,-283.65553495,0.00011384,2]
[334191583,1722821442791,-200.016704,0.00011384,2]
[334191584,1722821442803,-155.0,0.00011384,2]
[334191585,1722821442815,-485.01350292,0.00011384,2]
[334191586,1722821442826,-620.17176595,0.00011384,2]
[334191587,1722821442838,-1184.1001296,0.00011384,2]
[334191588,1722821442849,-190.03799661,0.00011384,2]
[334191589,1722821442861,-1138.21529033,0.00011384,2]
[334191590,1722821442873,-522.36752853,0.00011384,2]
[334191591,1722821442884,-155.0,0.00011384,2]
[334191592,1722821442897,-238.27785117,0.00011384,2]
[334191593,1722821442908,-363.89708329,0.00011384,2]
[334191594,1722821442920,-155.0,0.00011384,2]
[334191595,1722821442931,-526.23743645,0.00011384,2]
[334191596,1722821442948,-547.40182525,0.00011384,2]
[334191597,1722821442960,-653.41417875,0.00011384,2]
[334191598,1722821442972,-217.16405623,0.00011384,2]
[334191599,1722821442983,-650.97560109,0.00011384,2]
[334191600,1722821442995,-243.71310545,0.00011384,2]
[334191601,1722821443006,-602.7226857,0.00011384,2]
[334191602,1722821443018,-1684.57709697,0.00011384,2]
[334191603,1722821443030,-155.0,0.00011384,2]
[334191604,1722821443041,-308.19941851,0.00011384,2]
[334191605,1722821443053,-359.31040171,0.00011384,2]
[334191606,1722821443065,-155.0,0.00011384,2]
[334191607,1722821443076,-202.43790103,0.00011384,2]
[334191608,1722821443088,-400.0,0.00011384,2]
[334191612,1722821443100,-521.9105533,0.00011384,2]
[334191616,1722821443111,-155.0,0.00011384,2]
[334191618,1722821443122,-500.0,0.00011489,2]
[334191620,1722821443133,-35268.7287,0.00011489,2]
[334191622,1722821443145,-607.3279,0.00011489,2]
[334191623,1722821443157,-170.63636757,0.00011515,2]
[334191624,1722821443169,-449.21056611,0.00011515,2]
[334191625,1722821443180,-3068.13856627,0.00011522,2]
[334191626,1722821443197,-9246.60172865,0.00011522,2]
[334191627,1722821443209,-2563.7675372,0.00011522,2]
[334191628,1722821443221,-155.0,0.00011522,2]
[334191629,1722821443233,-1297.82538446,0.00011525,2]
[334191630,1722821443246,-349.59702865,0.00011525,2]
[334191631,1722821443258,-1725.0,0.00011525,2]
[334191632,1722821443272,-35700.88540887,0.00011525,2]
[334191642,1722821443284,-160.38790838,0.00011525,2]
[334191650,1722821443297,-155.30539952,0.00011525,2]
[334191658,1722821443309,-195.74064103,0.00011525,2]
[334191664,1722821443322,-1046.22660601,0.00011525,2]
[334191670,1722821443336,-1500.0,0.00011525,2]
[334191673,1722821443348,-401.00653815,0.00011525,2]
[334191677,1722821443360,-255.0,0.0001153,2]
[334191683,1722821443373,-586.28935795,0.00011589,2]
[334191687,1722821443384,-528.53318853,0.0001185,2]
[334191691,1722821443396,-200.0,0.0001199,2]
[334191696,1722821443408,-5000.0,0.00012,2]
[334191701,1722821443420,-162.09,0.00012033,2]
[334191705,1722821443436,-587.0,0.00012303,2]
[334191710,1722821443449,-400.0,0.00012342,2]
[334191713,1722821443461,-400.0,0.00012342,2]
[334191717,1722821443475,-171.17,0.00012533,2]
[334191720,1722821443486,-319.33643393,0.00012555,2]
[334191723,1722821443499,-433.0,0.00012644,2]
[334191732,1722821443510,-1000.0,0.00012647,2]
[334191737,1722821443523,-726.75,0.0001271,2]
[334191741,1722821443534,-179.99,0.00012893,2]
[334191747,1722821443546,-158.19847396,0.00013,2]
[334191753,1722821443557,-200.0,0.00013189,2]
[334191757,1722821443569,-162.09,0.0001331,2]
[334191761,1722821443581,-823.0,0.00013533,2]
[334191763,1722821443592,-121029.7613,0.00013601,2]
[334191766,1722821443604,-200.0,0.00013699,2]
[334191768,1722821443616,-500.0,0.00013699,2]
[334191770,1722821443628,-2751.0,0.00013699,2]
[334191772,1722821443642,-300.0,0.00013699,2]
[334191775,1722821443656,-300.0,0.00013699,2]
[334191777,1722821443670,-1295.74916249,0.000137,2]
[334191779,1722821443688,-300.0,0.00013799,2]
[334191780,1722821443701,-300.0,0.00013799,2]
[334191781,1722821443714,-365010.390549,0.000138,3]
[334191782,1722821443726,-705.0,0.00013874,2]
[334191783,1722821443739,-22641.85233073,0.00013899,2]
[334191784,1722821443753,-3459.3497479,0.000139,3]
[334191785,1722821443764,-1000.0,0.00013912,2]
[334191786,1722821443775,-169.31,0.00013973,2]
[334191787,1722821443787,-1000.0,0.00013973,2]
[334191788,1722821443800,-1000.0,0.00013973,2]
[334191789,1722821443812,-1000.0,0.00013973,2]
[334191790,1722821443823,-1000.0,0.00013973,2]
[334191792,1722821443835,-151.5,0.00013973,2]
[334191795,1722821443847,-170.71,0.00013973,2]
[334191797,1722821443859,-400.0,0.00014275,2]
[334191799,1722821443871,-600.0,0.00014346,2]
[334191801,1722821443883,-200.0,0.00014388,2]
[334191803,1722821443896,-10526.6186532,0.00014579,2]
[334191806,1722821443908,-162.09,0.00014586,2]
[334191808,1722821443920,-234.92833804,0.000146,2]
[334191810,1722821443938,-319.33643393,0.00014612,2]
[334191812,1722821443951,-270.847301,0.00014795,2]
[334191813,1722821443963,-8494.45241692,0.0001486,2]
[334191814,1722821443976,-5000.0,0.0001486,2]
[334191815,1722821443989,-689.0,0.00014887,2]
[334191816,1722821444002,-726.75,0.00014955,2]
[334191817,1722821444013,-6725.14734602,0.00015,7]
[334191818,1722821444026,-171.17,0.00015039,2]
[334191819,1722821444038,-1000.0,0.00015176,2]
[334191822,1722821444051,-270.847301,0.00015616,2]
[334191825,1722821444063,-167.0,0.00015831,2]
[334191828,1722821444075,-4268.70526342,0.00016,15]
[334191832,1722821444088,-511.95959783,0.00016,2]
[334191836,1722821444100,-900.0,0.00016,2]
[334191839,1722821444113,-3511.0,0.00016,2]
[334191843,1722821444125,-400.0,0.00016059,2]
[334191846,1722821444138,-2500.85158559,0.00016425,2]
[334191848,1722821444151,-270.847301,0.00016438,2]
[334191850,1722821444164,-319.33643393,0.0001667,2]
[334191854,1722821444177,-402.32312699,0.00016687,2]
[334191856,1722821444197,-10135.38311646,0.00016711,2]
[334191859,1722821444209,-1435.0,0.000169,2]
[334191861,1722821444222,-1762.35293248,0.00016951,2]
[334191863,1722821444234,-2400.777,0.00017133,2]
[334191865,1722821444246,-290.075,0.00017133,2]
[334191868,1722821444258,-1259.306,0.00017133,2]
[334191870,1722821444269,-726.75,0.000172,2]
[334191872,1722821444282,-792.49801676,0.00017259,2]
[334191874,1722821444294,-2839.13560359,0.00017259,2]
[334191877,1722821444306,-270.847301,0.0001726,2]
[334191879,1722821444318,-10000.0,0.00017357,2]
[334191881,1722821444329,-150.0,0.00017384,2]
[334191883,1722821444341,-190.08288246,0.00017533,2]
[334191886,1722821444353,-158.81216051,0.00017533,2]
[334191888,1722821444365,-196.97900154,0.00017533,2]
[334191890,1722821444377,-270.35790716,0.00017608,2]
[334191893,1722821444390,-270.35790716,0.00017608,2]
[334191897,1722821444405,-328.03918771,0.00017608,2]
[334191899,1722821444417,-165.29911973,0.00017636,2]
[334191903,1722821444431,-164.27710072,0.00017636,2]
[334191908,1722821444449,-203.28844738,0.00017636,2]
[334191912,1722821444462,-203.25826837,0.00017739,2]
[334191917,1722821444474,-357.18180606,0.00017739,2]
[334191923,1722821444487,-164.25556489,0.00017739,2]
[334191989,1722821445106,-649.29247659,0.00017739,2]
[334191993,1722821445134,-155.0,0.00017739,2]
[334191997,1722821445165,-255.00517776,0.00017739,2]
[334192000,1722821445190,-357.18180606,0.00017739,2]
[334192002,1722821445201,-155.0,0.00017739,2]
[334192004,1722821445211,-155.0,0.00017782,2]
[334192006,1722821445221,-155.0,0.00017782,2]
[334192008,1722821445231,-236.19407815,0.00017782,2]
[334192010,1722821445241,-531.86817504,0.00017799,2]
[334192012,1722821445251,-531.86817504,0.00017799,2]
[334192014,1722821445261,-4103.05217891,0.00017807,2]
[334192016,1722821445271,-155.0,0.00017807,2]
[334192018,1722821445282,-4103.05217891,0.00017807,2]
[334192020,1722821445292,-400.0,0.00017843,2]
[334192022,1722821445302,-535.57210001,0.00018,2]
[334192024,1722821445311,-270.847301,0.00018082,2]
[334192026,1722821445322,-167.0,0.00018444,2]
[334192028,1722821445331,-3083.31,0.00018533,2]
[334192030,1722821445341,-9999.99,0.00018533,2]
[334192032,1722821445351,-300.0,0.0001861,2]
[334192034,1722821445362,-300.0,0.0001861,2]
[334192036,1722821445372,-550.0,0.00018611,2]
[334192038,1722821445382,-1523.414,0.00018611,2]
[334192040,1722821445392,-1691.696,0.00018611,2]
[334192042,1722821445403,-1360.0,0.00018611,2]
[334192044,1722821445413,-1667.313,0.00018611,2]
[334192046,1722821445423,-3195.564,0.00018611,2]
[334192048,1722821445438,-1835.388,0.00018611,2]
[334192051,1722821445449,-622.123,0.00018611,2]
[334192053,1722821445460,-319.33643393,0.00018727,2]
[334192055,1722821445471,-155.0,0.00018898,2]
[334192057,1722821445482,-270.847301,0.00018904,2]
[334192059,1722821445492,-1663.6,0.00019,2]
[334192061,1722821445503,-628.3200995,0.00019045,2]
[334192063,1722821445513,-155.16289647,0.00019045,2]
[334192065,1722821445524,-297.2590854,0.00019177,2]
[334192067,1722821445534,-196.60966023,0.00019319,2]
[334192069,1722821445544,-155.0,0.00019387,2]
[334192072,1722821445554,-200.0,0.00019398,2]
[334192074,1722821445564,-726.75,0.00019445,2]
[334192076,1722821445575,-1435.0,0.000195,2]
[334192078,1722821445586,-400.0,0.00019628,2]
[334192080,1722821445596,-1049.85059139,0.00019725,40]
[334192082,1722821445608,-270.847301,0.00019726,2]
[334192084,1722821445618,-210.81100741,0.00019899,2]
[334192086,1722821445628,-155.0,0.00019999,2]
[334192088,1722821445639,-500.0,0.0002,2]
[334192090,1722821445649,-500.0,0.0002,2]
[334192092,1722821445659,-234.64,0.0002,2]
[334192094,1722821445669,-6288.50435063,0.0002,2]
[334192096,1722821445680,-9263.979999,0.0002,2]
[334192098,1722821445698,-155.12339091,0.0002,2]
[334192100,1722821445708,-274.269559,0.0002,2]
[334192102,1722821445718,-151.0,0.0002,2]
[334192104,1722821445728,-151.0,0.0002,2]
[334192106,1722821445738,-151.0,0.0002,2]
[334192107,1722821445748,-152.066125,0.0002,2]
[334192108,1722821445759,-443.75707932,0.0002,2]
[334192109,1722821445770,-2708.0,0.00020041,2]
[334192110,1722821445780,-500.58213625,0.00020044,2]
[334192111,1722821445791,-1256.0,0.00020133,2]
[334192112,1722821445802,-500.0,0.00020248,2]
[334192113,1722821445812,-500.0,0.00020256,2]
[334192114,1722821445822,-170.71,0.00020447,2]
[334192115,1722821445831,-500.0,0.00020513,2]
[334192117,1722821445841,-270.847301,0.00020548,2]
[334192119,1722821445851,-500.0,0.00020655,2]
[334192121,1722821445861,-319.33643393,0.00020785,2]
[334192123,1722821445871,-500.0,0.00020922,2]
[334192125,1722821445881,-500.0,0.00021128,2]
[334192127,1722821445891,-21829.0,0.000212,2]
[334192129,1722821445901,-500.0,0.00021359,2]
[334192131,1722821445911,-270.847301,0.0002137,2]
[334192133,1722821445921,-400.0,0.00021412,2]
[334192135,1722821445931,-375.66469238,0.00021461,2]
[334192137,1722821445946,-162.77,0.00021589,30]
[334192139,1722821445955,-622.0,0.00021611,2]
[334192141,1722821445965,-726.75,0.0002169,2]
[334192144,1722821445975,-375.66469238,0.00021746,2]
[334192146,1722821445985,-11496.0,0.000218,3]
[334192148,1722821445995,-9893.031418,0.0002188,2]
[334192150,1722821446005,-1435.0,0.000219,2]
[334192152,1722821446016,-152.52,0.00021918,2]
[334192154,1722821446026,-150.2,0.00021918,2]
[334192156,1722821446036,-190.63,0.00021918,2]
[334192158,1722821446045,-156.0,0.0002195,7]
[334192160,1722821446055,-500.0,0.0002199,2]
[334192162,1722821446065,-300.0,0.00021999,2]
[334192164,1722821446074,-124511.87672221,0.00022,2]
[334192166,1722821446084,-371.74166536,0.00022,2]
[334192168,1722821446094,-61313.27991972,0.00022,2]
[334192170,1722821446104,-375.66469238,0.00022016,2]
[334192172,1722821446113,-270.847301,0.00022192,2]
[334192174,1722821446123,-2381.0,0.000222,2]
[334192176,1722821446133,-500.0,0.0002229,2]
[334192178,1722821446142,-1200.0,0.000223,2]
[334192180,1722821446152,-375.66469238,0.00022363,2]
[334192182,1722821446162,-284.361561,0.00022438,2]
[334192184,1722821446171,-4391.116997,0.00022438,2]
[334192185,1722821446180,-917.37507,0.00022438,2]
[334192186,1722821446195,-201.355628,0.00022438,2]
[334192187,1722821446205,-200.043672,0.00022438,2]
[334192188,1722821446215,-2624.364163,0.00022438,2]
[334192189,1722821446224,-3706.448516,0.00022438,2]
[334192191,1722821446234,-201.355628,0.00022438,2]
[334192193,1722821446244,-917.37507,0.00022438,2]
[334192194,1722821446254,-200.043672,0.00022438,2]
[334192196,1722821446264,-3764.690627,0.00022438,2]
[334192198,1722821446274,-3021.780034,0.00022438,2]
[334192200,1722821446284,-160.640403,0.00022438,2]
[334192202,1722821446294,-11496.0,0.000225,5]
[334192204,1722821446303,-500.0,0.00022504,2]
[334192207,1722821446314,-375.66469238,0.00022671,2]
[334192210,1722821446324,-284.361561,0.00022718,2]
[334192212,1722821446333,-4391.116997,0.00022718,2]
[334192214,1722821446343,-917.37507,0.00022718,2]
[334192216,1722821446353,-2624.364163,0.00022718,2]
[334192218,1722821446363,-3706.448516,0.00022718,2]
[334192220,1722821446374,-917.37507,0.00022718,2]
[334192222,1722821446385,-3764.690627,0.00022718,2]
[334192224,1722821446396,-3021.780034,0.00022718,2]
[334192227,1722821446406,-319.33643393,0.00022842,2]
[334192229,1722821446418,-500.0,0.0002286,2]
[334192231,1722821446429,-375.66469238,0.00022984,2]
[334192233,1722821446448,-284.361561,0.00022999,2]
[334192235,1722821446459,-4391.116997,0.00022999,2]
[334192237,1722821446470,-917.37507,0.00022999,2]
[334192239,1722821446482,-2624.364163,0.00022999,2]
[334192241,1722821446493,-3706.448516,0.00022999,2]
[334192243,1722821446504,-917.37507,0.00022999,2]
[334192245,1722821446515,-3764.690627,0.00022999,2]
[334192247,1722821446525,-3021.780034,0.00022999,2]
[334192249,1722821446535,-300.0,0.00022999,2]
[334192251,1722821446545,-2000.0,0.00023,2]
[334192253,1722821446556,-571158.94905961,0.00023,5]
[334192255,1722821446566,-234.05839672,0.00023,7]
[334192258,1722821446576,-151.0,0.00023,7]
[334192260,1722821446586,-151.0,0.00023,7]
[334192262,1722821446596,-992.36,0.00023,2]
[334192264,1722821446606,-2000.0,0.0002301,2]
[334192266,1722821446616,-3590.790469,0.0002302,2]
[334192268,1722821446626,-375.66469238,0.00023189,2]
[334192270,1722821446636,-284.361561,0.00023279,2]
[334192272,1722821446648,-4391.116997,0.00023279,2]
[334192274,1722821446659,-917.37507,0.00023279,2]
[334192275,1722821446669,-2624.364163,0.00023279,2]
[334192277,1722821446682,-3706.448516,0.00023279,2]
[334192279,1722821446697,-917.37507,0.00023279,2]
[334192281,1722821446708,-3764.690627,0.00023279,2]
[334192283,1722821446719,-3021.780034,0.00023279,2]
[334192285,1722821446729,-165.0,0.0002333,10]
[334192287,1722821446740,-500.0,0.00023384,2]
[334192289,1722821446750,-375.66469238,0.00023405,2]
[334192291,1722821446761,-500.0,0.00023409,2]
[334192293,1722821446771,-217.31438051,0.00023451,2]
[334192295,1722821446781,-1930.20669701,0.0002354,2]
[334192297,1722821446791,-151.0,0.00023559,7]
[334192299,1722821446801,-151.0,0.00023559,7]
[334192301,1722821446811,-284.077122,0.00023559,7]
[334192303,1722821446822,-284.361561,0.00023559,2]
[334192305,1722821446832,-4391.116997,0.00023559,2]
[334192307,1722821446842,-201.355628,0.00023559,2]
[334192309,1722821446852,-917.37507,0.00023559,2]
[334192311,1722821446862,-200.043672,0.00023559,2]
[334192313,1722821446872,-2624.364163,0.00023559,2]
[334192315,1722821446883,-3706.448516,0.00023559,2]
[334192317,1722821446893,-201.355628,0.00023559,2]
[334192319,1722821446904,-200.043672,0.00023559,2]
[334192321,1722821446913,-917.37507,0.00023559,2]
[334192323,1722821446924,-3764.690627,0.00023559,2]
[334192325,1722821446937,-3021.780034,0.00023559,2]
[334192326,1722821446947,-500.0,0.00023689,7]
[334192327,1722821446956,-1000.0,0.000237,2]
[334192328,1722821446967,-375.66469238,0.00023721,2]
[334192329,1722821446977,-1435.0,0.000238,7]
[334192330,1722821446987,-500.0,0.00023915,2]
[334192331,1722821446997,-500.0,0.00023918,2]
[334192332,1722821447007,-726.75,0.00023935,2]
[334192333,1722821447017,-1652.19856751,0.00023955,2]
[334192334,1722821447027,-500.0,0.00023962,7]
[334192335,1722821447036,-500.0,0.00023985,2]
[334192336,1722821447048,-500.0,0.00023993,2]
[334192337,1722821447058,-500.0,0.00024,2]
[334192338,1722821447067,-500.0,0.00024,2]
[334192339,1722821447077,-500.0,0.00024,2]
[334192340,1722821447086,-337.22,0.00024,2]
[334192341,1722821447096,-500.0,0.00024,2]
[334192342,1722821447106,-500.0,0.00024,2]
[334192343,1722821447115,-500.0,0.00024,2]
[334192344,1722821447125,-500.0,0.00024,2]
[334192345,1722821447134,-500.0,0.00024,2]
[334192346,1722821447144,-194.95,0.00024,2]
[334192347,1722821447155,-500.0,0.00024002,2]
[334192348,1722821447164,-500.0,0.00024011,2]
[334192349,1722821447174,-500.0,0.0002402,2]
[334192350,1722821447188,-500.0,0.00024029,2]
[334192351,1722821447198,-500.0,0.00024037,2]
[334192352,1722821447208,-500.0,0.00024046,2]
[334192353,1722821447217,-500.0,0.00024049,2]
[334192354,1722821447227,-375.66469238,0.00024051,2]
[334192355,1722821447236,-834.54,0.00024055,2]
[334192356,1722821447246,-420.62,0.00024055,2]
[334192357,1722821447256,-834.54,0.00024055,2]
[334192358,1722821447265,-420.62,0.00024055,2]
[334192359,1722821447275,-420.62,0.00024055,2]
[334192360,1722821447284,-834.0,0.00024055,2]
[334192361,1722821447294,-420.22,0.00024055,2]
[334192362,1722821447304,-500.0,0.00024055,2]
[334192363,1722821447313,-250.0,0.000241,11]
[334192364,1722821447323,-250.0,0.000241,11]
[334192365,1722821447333,-250.0,0.000241,11]
[334192366,1722821447343,-250.0,0.000241,11]
[334192367,1722821447352,-355.63,0.00024192,2]
[334192368,1722821447362,-2315.52,0.000242,7]
[334192369,1722821447372,-150.0,0.00024226,2]
[334192370,1722821447381,-628.27,0.00024235,7]
[334192371,1722821447391,-150.0,0.00024261,2]
[334192372,1722821447401,-150.0,0.00024282,2]
[334192373,1722821447410,-150.0,0.00024295,2]
[334192374,1722821447420,-1000.0,0.000243,2]
[334192375,1722821447430,-150.0,0.00024303,2]
[334192376,1722821447445,-150.0,0.00024304,2]
[334192377,1722821447454,-150.0,0.00024329,2]
[334192378,1722821447464,-10000.0,0.00024329,2]
[334192379,1722821447473,-150.0,0.00024335,2]
[334192380,1722821447483,-150.0,0.00024339,2]
[334192381,1722821447493,-375.66469238,0.00024352,2]
[334192382,1722821447503,-150.0,0.00024358,2]
[334192383,1722821447512,-150.0,0.00024361,2]
[334192384,1722821447522,-150.0,0.00024381,2]
[334192389,1722821447532,-1010.72,0.000244,2]
[334192391,1722821447610,-303.9,0.000244,2]
[334192393,1722821447620,-150.0,0.000244,9]
[334192395,1722821447629,-150.0,0.00024408,2]
[334192397,1722821447639,-150.0,0.00024416,2]
[334192399,1722821447653,-150.0,0.00024419,2]
[334192401,1722821447663,-8982.0540023,0.00024423,21]
[334192403,1722821447673,-310.88296728,0.00024423,2]
[334192404,1722821447684,-3905.99874356,0.00024424,2]
[334192406,1722821447696,-150.0,0.00024424,2]
[334192408,1722821447705,-5604.20710736,0.00024427,2]
[334192410,1722821447715,-150.0,0.00024434,2]
[334192412,1722821447725,-310.88296728,0.00024436,2]
[334192414,1722821447735,-3905.99874356,0.00024436,2]
[334192416,1722821447745,-310.88296728,0.00024437,2]
[334192418,1722821447756,-310.88296728,0.0002444,2]
[334192420,1722821447766,-150.0,0.00024444,2]
[334192422,1722821447776,-3905.99874356,0.00024445,2]
[334192424,1722821447786,-310.88296728,0.00024449,2]
[334192426,1722821447796,-150.0,0.00024451,2]
[334192428,1722821447805,-310.88296728,0.00024455,2]
[334192430,1722821447814,-150.0,0.00024458,2]
[334192432,1722821447824,-150.0,0.00024458,2]
[334192434,1722821447835,-150.0,0.0002446,2]
[334192436,1722821447845,-3905.99874356,0.00024462,2]
[334192437,1722821447854,-310.88296728,0.00024469,2]
[334192438,1722821447864,-150.0,0.00024471,2]
[334192439,1722821447875,-150.0,0.00024478,2]
[334192440,1722821447885,-150.0,0.00024478,2]
[334192441,1722821447895,-3905.99874356,0.00024481,2]
[334192442,1722821447905,-150.0,0.00024482,2]
[334192443,1722821447915,-310.88296728,0.00024484,2]
[334192444,1722821447925,-3905.99874356,0.00024486,2]
[334192445,1722821447938,-3905.99874356,0.00024497,2]
[334192447,1722821447948,-3905.99874356,0.00024497,2]
[334192449,1722821447957,-2727.0,0.00024498,5]
[334192451,1722821447967,-150.0,0.00024502,2]
[334192453,1722821447977,-150.0,0.00024502,2]
[334192455,1722821447987,-200.0,0.00024514,2]
[334192457,1722821447996,-150.0,0.00024517,2]
[334192458,1722821448006,-150.0,0.00024519,2]
[334192461,1722821448015,-150.0,0.00024519,2]
[334192462,1722821448026,-150.0,0.0002452,2]
[334192464,1722821448036,-150.0,0.00024523,2]
[334192466,1722821448046,-150.0,0.00024536,2]
[334192468,1722821448055,-150.0,0.00024541,2]
[334192470,1722821448067,-500.0,0.00024553,2]
[334192473,1722821448078,-150.0,0.00024571,2]
[334192474,1722821448087,-150.0,0.00024576,2]
[334192477,1722821448098,-150.0,0.0002458,2]
[334192479,1722821448108,-150.0,0.0002458,2]
[334192481,1722821448118,-2000.0,0.000246,2]
[334192483,1722821448128,-2000.0,0.000246,2]
[334192485,1722821448138,-702.0,0.000246,12]
[334192486,1722821448148,-1400.0,0.000246,8]
[334192488,1722821448158,-300.0,0.000246,8]
[334192490,1722821448167,-150.0,0.00024606,2]
[334192492,1722821448177,-150.0,0.00024615,2]
[334192494,1722821448193,-150.0,0.00024619,2]
[334192496,1722821448202,-375.66469238,0.00024622,2]
[334192499,1722821448213,-150.0,0.00024625,2]
[334192501,1722821448224,-150.0,0.00024641,2]
[334192503,1722821448234,-150.0,0.00024649,2]